bitfinex-derivatives/quotes_ETHF0:USTF0_20250224
["timestamp","ask_amount","ask_price","bid_price","bid_amount"]
[1740414385209,1.86821,2676.3,2675.7,4.0575]
[1740414385414,0.74742,2675.8,2675.7,0.5555]
[1740414385813,0.74742,2675.8,2675.7,0.00561241]
[1740414387017,3.95522,2675.8,2675.7,0.00561241]
[1740414388516,3.95522,2675.8,2675.2,3.2078]
[1740414388517,0.74756,2675.3,2675.2,3.2078]
[1740414388723,3.2078,2675.5,2674.9,4.0647]
[1740414388921,3.2078,2675.5,2675.0,0.74764]
[1740414389121,0.74764,2675.0,2674.9,4.0647]
[1740414389324,3.2078,2675.5,2674.9,1.31136]
[1740414389325,5.0766,2675.5,2674.9,1.31136]
[1740414389512,3.2078,2675.5,2675.0,0.74764]
[1740414389718,0.74762,2675.1,2675.0,0.74764]
[1740414390019,3.21341241,2675.5,2674.9,0.56931241]
[1740414390222,0.7476,2675.2,2674.9,0.56931241]
[1740414390515,0.74757,2675.3,2675.2,0.74758]
[1740414390719,3.21341241,2675.5,2675.2,0.74758]
[1740414390920,0.74754,2675.4,2675.3,0.74755]
[1740414391223,3.21341241,2675.5,2674.9,3.77711241]
[1740414391422,1.86884,2675.4,2674.9,3.77711241]
[1740414391723,0.74764,2675.0,2674.9,4.52477241]
[1740414391915,1.86884,2675.4,2674.9,4.52477241]
[1740414392115,0.74764,2675.0,2674.9,1.31697241]
[1740414392316,3.21341241,2675.5,2674.9,0.56931241]
[1740414392623,0.74759,2675.2,2675.1,0.7476]
[1740414392917,3.21341241,2675.5,2674.9,0.56931241]
[1740414393119,0.74756,2675.3,2675.2,0.74757]
[1740414393310,0.00561241,2675.5,2674.9,5.64628241]
[1740414393511,0.00561241,2675.5,2674.9,3.77711241]
[1740414393712,0.74764,2675.0,2674.9,0.00561241]
[1740414395320,0.74764,2675.0,2674.6,3.2078]
[1740414395321,0.7477,2674.9,2674.6,3.2078]
[1740414395520,0.74773,2674.7,2674.6,3.2078]
[1740414396114,3.73866,2674.7,2674.0,1.0997]
[1740414396315,0.7479,2674.1,2674.0,1.0997]
[1740414396626,3.2078,2674.5,2674.1,0.75351241]
[1740414396817,0.74787,2674.2,2674.1,3.21341241]
[1740414397119,0.74787,2674.2,2674.1,0.00561241]
[1740414399227,3.2078,2674.5,2674.1,0.00561241]
[1740414399530,3.2078,2674.9,2674.4,5.07731]
[1740414399820,0.00296554,2675.0,2674.9,0.74767]
[1740414400021,0.00296554,2675.0,2674.5,3.5]
[1740414400329,0.00296554,2675.0,2674.6,40.8]
[1740414400330,0.74773,2674.7,2674.6,40.8]
[1740414400719,3.21076554,2675.0,2674.6,40.8]
[1740414400926,0.00296554,2675.0,2674.6,40.8]
[1740414401222,0.00296554,2675.0,2674.9,0.74767]
[1740414402318,0.00561241,2675.5,2675.4,0.74753]
[1740414403025,0.75311241,2675.5,2675.3,1.31254]
[1740414403428,0.00561241,2675.5,2675.3,0.565]
[1740414403616,0.74753,2675.4,2675.3,0.565]
[1740414404019,0.74756,2675.3,2675.2,47.5068]
[1740414404222,0.74756,2675.3,2675.2,3.499]
[1740414404426,0.00561241,2675.5,2675.2,3.499]
[1740414404619,0.75314241,2675.5,2675.3,0.74755]
[1740414404820,0.00561241,2675.5,2675.4,0.74753]
[1740414405930,0.00561241,2675.5,2675.2,3.499]
[1740414406226,0.75312241,2675.5,2675.2,3.499]
[1740414406624,0.74755,2675.4,2675.2,3.499]
[1740414406828,0.74755,2675.4,2675.2,4.24656]
[1740414407127,0.00561241,2675.5,2675.2,3.499]
[1740414407323,0.00561241,2675.5,2675.4,0.74753]
[1740414408230,0.00561241,2675.5,2675.2,3.499]
[1740414408530,0.00561241,2675.5,2675.2,4.24658]
[1740414408531,0.74756,2675.3,2675.2,4.24658]
[1740414408727,0.74764,2675.1,2674.9,1.31265]
[1740414408921,1.86884,2675.4,2674.9,0.565]
[1740414409122,0.74764,2675.0,2674.9,1.31266]
[1740414409320,0.74764,2675.0,2674.9,0.565]
[1740414409527,0.74767,2674.9,2674.8,3.2078]
[1740414409927,5.07685,2675.1,2674.5,0.5868]
[1740414410133,0.74776,2674.6,2674.5,0.5868]
[1740414410732,1.86912,2675.0,2674.3,3.2078]
[1740414411028,1.86912,2675.0,2674.5,0.74778]
[1740414411227,1.86912,2675.0,2674.3,3.2078]
[1740414411428,0.74776,2674.6,2674.5,0.74776]
[1740414411629,1.86912,2675.0,2674.3,3.2078]
[1740414411828,0.7478,2674.5,2674.4,0.74781]
[1740414412028,1.86912,2675.0,2674.3,3.2078]
[1740414412235,0.74779,2674.5,2674.4,0.7478]
[1740414412635,1.86928,2674.8,2674.3,3.2078]
[1740414412934,2.24328,2674.8,2674.3,3.2078]
[1740414413130,2.24312,2675.0,2674.3,3.2078]
[1740414413435,0.74776,2674.6,2674.5,0.74776]
[1740414413822,3.2078,2675.1,2674.3,3.2078]
[1740414414030,0.74765,2675.0,2674.9,0.74766]
[1740414414238,3.2078,2675.1,2674.6,3.2078]
[1740414414239,3.2078,2675.1,2675.0,0.74764]
[1740414414533,1.32357,2675.3,2675.2,0.74759]
[1740414414835,0.74756,2675.3,2675.2,0.74759]
[1740414415029,0.5797,2675.4,2674.9,3.2078]
[1740414415225,0.74754,2675.4,2674.9,3.2078]
[1740414415429,0.00561241,2675.5,2675.2,3.2078]
[1740414415629,0.75312241,2675.5,2675.4,0.74753]
[1740414416134,0.75313241,2675.5,2675.4,0.74753]
[1740414416438,0.00561241,2675.5,2675.3,0.74754]
[1740414416836,0.00561241,2675.5,2675.4,0.74753]
[1740414418139,0.75311241,2675.5,2675.4,0.74753]
[1740414418332,0.74753,2675.4,2675.3,1.27935]
[1740414418532,0.74753,2675.4,2675.3,0.5318]
[1740414418837,0.74753,2675.4,2675.3,1.27936]
[1740414419032,0.00561241,2675.5,2675.4,0.74753]
[1740414419843,0.00561241,2675.5,2675.3,0.5318]
[1740414420139,0.74756,2675.3,2675.2,3.2078]
[1740414420535,0.00561241,2675.5,2675.4,0.74753]
[1740414420736,0.75311241,2675.5,2675.4,0.74753]
[1740414420935,0.74756,2675.3,2675.2,3.2078]
[1740414421137,0.00561241,2675.5,2675.2,3.2078]
[1740414421438,0.5876,2676.0,2675.2,3.2078]
[1740414421636,0.557,2676.1,2675.6,3.2078]
[1740414421935,0.557,2676.1,2675.2,3.50679115]
[1740414422130,0.557,2676.1,2675.5,3.2078]
[1740414422334,0.56261241,2676.1,2675.5,3.21341241]
[1740414422537,0.56261241,2676.1,2675.5,0.00561241]
[1740414422743,0.5614,2676.0,2675.5,0.00561241]
[1740414423637,0.56261241,2676.1,2675.5,0.00561241]
[1740414423843,0.56261241,2676.1,2675.5,0.54771241]
[1740414424040,0.00561241,2676.1,2675.8,3.2078]
[1740414424245,0.00561241,2676.1,2676.0,0.74736]
[1740414424542,0.75296241,2676.1,2676.0,0.74736]
[1740414424736,0.00561241,2676.1,2676.0,0.74736]
[1740414425543,0.00561241,2676.1,2675.9,0.5479]
[1740414425544,0.75295241,2676.1,2675.9,0.5479]
[1740414425741,0.00561241,2676.1,2675.8,3.2078]
[1740414425934,0.74739,2675.9,2675.8,3.95521]
[1740414426141,0.75296241,2676.1,2676.0,0.74736]
[1740414426441,0.75295241,2676.1,2676.0,0.74736]
[1740414426641,0.00561241,2676.1,2676.0,0.74736]
[1740414428347,0.00561241,2676.1,2676.0,4.24136]
[1740414428647,5.0754,2677.2,2676.0,3.494]
[1740414428847,0.5322,2677.1,2676.2,3.2078]
[1740414429141,0.5322,2677.1,2676.0,5.36239]
[1740414429142,3.2078,2676.5,2676.0,1.86842]
[1740414429343,3.2078,2676.8,2676.0,0.5595]
[1740414429646,0.74713,2676.9,2676.8,0.74713]
[1740414429844,0.74724,2676.5,2676.4,0.74722]
[1740414430042,0.00561241,2676.7,2676.0,0.5595]
[1740414430443,0.00561241,2676.7,2675.8,3.2078]
[1740414430444,0.374,2676.4,2675.8,3.2078]
[1740414430643,0.74737,2676.0,2675.9,0.74737]
[1740414430839,0.374,2676.2,2675.8,3.2078]
[1740414431044,0.74736,2676.1,2676.0,0.74736]
[1740414431444,0.374,2676.2,2675.8,3.2078]
[1740414431651,0.74734,2676.1,2676.0,0.74734]
[1740414431949,6.7008,2676.6,2676.0,1.86842]
[1740414432143,1.7212,2676.8,2676.6,0.7472]
[1740414432347,1.7212,2676.8,2676.2,1.86821]
[1740414432348,0.5841,2676.8,2676.5,0.74722]
[1740414432656,1.33125,2676.8,2676.6,0.7472]
[1740414432951,3.2078,2677.0,2676.6,0.7472]
[1740414433355,0.74715,2676.8,2676.6,0.7472]
[1740414433852,1.86761,2677.2,2676.6,0.7472]
[1740414434051,0.75279241,2676.7,2676.6,0.7472]
[1740414434655,0.74722,2676.6,2676.5,0.74721]
[1740414435047,0.75280241,2676.7,2676.6,0.7472]
[1740414435351,0.74723,2676.5,2676.4,0.74723]
[1740414435553,3.21341241,2676.7,2675.7,3.2078]
[1740414435856,0.552,2676.6,2676.5,0.74722]
[1740414436152,0.74722,2676.6,2676.5,0.74722]
[1740414436348,3.21341241,2676.7,2676.6,0.7472]
[1740414436549,0.00561241,2676.7,2676.6,0.7472]
[1740414436850,0.75278241,2676.7,2676.6,0.7472]
[1740414437053,0.7472,2676.6,2676.5,0.74721]
[1740414437551,0.7472,2676.6,2676.3,2.41348]
[1740414437552,0.75280241,2676.7,2676.6,0.7472]
[1740414437752,0.00561241,2676.7,2676.3,0.5453]
[1740414438150,0.74723,2676.5,2676.4,0.74724]
[1740414438346,0.00561241,2676.7,2676.3,0.5453]
[1740414438746,0.74725,2676.4,2676.3,1.29257]
[1740414439044,0.74728,2676.3,2676.2,0.534]
[1740414439355,1.868,2676.6,2675.8,0.5381]
[1740414439356,3.2078,2676.6,2676.3,0.74728]
[1740414439647,0.74728,2676.3,2676.2,0.7473]
[1740414439854,0.74733,2676.2,2676.0,0.74734]
[1740414440052,0.74733,2676.2,2676.0,0.74735]
[1740414440354,0.74729,2676.3,2676.2,0.74729]
[1740414440748,0.374,2676.5,2675.9,1.1107]
[1740414440952,0.374,2676.4,2675.9,1.1107]
[1740414441247,0.00561241,2676.7,2676.0,3.2078]
[1740414441550,3.2078,2676.6,2676.0,3.2078]
[1740414441852,3.2078,2676.3,2675.9,1.1107]
[1740414442049,0.374,2676.2,2675.9,1.1107]
[1740414442255,0.374,2676.2,2675.6,3.771]
[1740414442551,0.9304,2676.2,2675.6,1.1585]
[1740414442749,2.0568,2676.2,2675.6,1.1585]
[1740414442947,1.6828,2676.2,2675.6,1.1585]
[1740414443149,1.12134,2676.1,2675.6,1.90598]
[1740414443349,0.74745,2675.7,2675.6,1.1585]
[1740414443651,0.74745,2675.7,2675.6,1.90596]
[1740414444047,0.74745,2675.7,2675.6,1.90598]
[1740414444350,0.374,2676.1,2675.6,1.1585]
[1740414444656,0.74741,2675.9,2675.6,1.1585]
[1740414445150,1.6828,2676.2,2675.6,1.1585]
[1740414445355,0.74745,2675.7,2675.6,1.1585]
[1740414445753,0.74742,2675.8,2675.7,0.74743]
[1740414445953,0.74743,2675.8,2675.7,41.54744]
[1740414446348,0.74741,2675.9,2675.7,40.8]
[1740414446544,3.2078,2676.0,2675.9,0.74739]
[1740414446749,3.95516,2676.0,2675.9,0.74739]
[1740414446949,3.2078,2676.0,2675.7,40.8]
[1740414447251,3.2078,2676.0,2675.6,1.1585]
[1740414447452,0.74744,2675.8,2675.6,1.90596]
[1740414447648,3.2078,2676.0,2675.6,1.1585]
[1740414447849,0.74745,2675.7,2675.6,1.1585]
[1740414448249,0.74745,2675.7,2675.6,1.90598]
[1740414448455,3.2078,2676.0,2675.6,1.1585]
[1740414448759,0.74734,2676.1,2676.0,0.74736]
[1740414448958,3.2078,2676.3,2675.9,3.2078]
[1740414449253,0.74734,2676.1,2676.0,0.74735]
[1740414449454,1.8681,2676.5,2675.6,4.3663]
[1740414449649,0.74733,2676.2,2675.7,1.8686]
[1740414449954,4.9371,2676.6,2676.1,0.74733]
[1740414449955,6.80512,2676.6,2676.1,0.74733]
[1740414450157,0.74729,2676.3,2676.2,0.74731]
[1740414450350,0.74732,2676.2,2675.7,5.3586]
[1740414450549,4.9371,2676.6,2675.7,3.49]
[1740414450756,0.74742,2675.8,2675.7,4.23744]
[1740414451060,0.74741,2675.9,2675.6,4.3663]
[1740414451256,1.86813,2676.5,2675.6,4.3663]
[1740414451462,0.74736,2676.0,2675.9,0.74737]
[1740414451657,0.74736,2676.1,2676.0,0.74735]
[1740414451957,0.74737,2676.0,2675.6,4.3663]
[1740414452259,1.86823,2676.3,2675.7,0.74745]
[1740414452260,0.74741,2675.9,2675.7,0.74745]
[1740414452562,0.74745,2675.7,2675.6,1.1585]
[1740414452757,0.74748,2675.6,2675.5,0.00561241]
[1740414453062,1.12148,2675.6,2675.5,0.00561241]
[1740414453249,0.74748,2675.6,2675.5,0.00561241]
[1740414453867,3.2078,2676.3,2675.5,3.21341241]
[1740414454056,6.18423,2676.3,2675.8,0.74741]
[1740414454365,0.74739,2675.9,2675.5,3.21341241]
[1740414454660,3.95519,2676.0,2675.8,0.74741]
[1740414454864,3.95519,2676.0,2675.5,3.21341241]
[1740414454865,3.2078,2676.0,2675.5,3.21341241]
[1740414455056,0.74739,2675.9,2675.8,0.74741]
[1740414455257,3.5818,2676.0,2675.5,3.21341241]
[1740414455763,0.7474,2675.9,2675.7,0.74743]
[1740414456062,3.5818,2676.0,2675.5,3.21341241]
[1740414456254,0.74748,2675.6,2675.5,0.00561241]
[1740414456457,4.1176,2676.0,2675.5,0.75309241]
[1740414456658,0.74746,2675.7,2675.5,0.75310241]
[1740414456967,0.74745,2675.8,2675.6,0.74748]
[1740414457261,0.74741,2675.9,2675.5,0.00561241]
[1740414457463,4.1176,2676.0,2675.6,0.74746]
[1740414457766,0.74746,2675.7,2675.6,0.74746]
[1740414458063,0.7474,2675.9,2675.8,0.74741]
[1740414458264,7.805,2676.3,2675.5,3.21341241]
[1740414458664,0.374,2676.2,2675.5,3.21341241]
[1740414460758,4.316,2676.3,2675.5,3.21341241]
[1740414460955,3.2078,2676.6,2675.8,3.2078]
[1740414461167,3.488,2676.9,2676.3,3.2078]
[1740414461364,3.21341241,2676.7,2676.0,2.982]
[1740414461662,0.5461,2676.6,2676.0,2.982]
[1740414461866,3.2078,2676.4,2676.0,2.982]
[1740414462365,1.136,2676.6,2676.0,2.982]
[1740414462960,3.21341241,2676.7,2676.2,3.2078]
[1740414463161,3.21341241,2676.7,2676.3,4.0338]
[1740414463567,0.00561241,2676.7,2676.5,3.2078]
[1740414463767,0.00561241,2676.7,2676.6,0.5454]
[1740414464263,0.75278241,2676.7,2676.6,1.2926]
[1740414464566,0.00561241,2676.7,2676.4,4.0697]
[1740414464868,0.75279241,2676.7,2676.6,0.7472]
[1740414465068,0.75279241,2676.7,2676.5,0.74722]
[1740414465069,0.74722,2676.6,2676.5,0.74722]
[1740414465367,0.00561241,2676.7,2676.4,4.0697]
[1740414465567,0.74725,2676.4,2676.3,0.5454]
[1740414465762,0.74725,2676.5,2676.1,3.487]
[1740414465963,0.37961241,2676.7,2676.6,0.7472]
[1740414466163,0.74725,2676.4,2676.3,3.2078]
[1740414466364,0.5633,2676.6,2675.8,5.3555]
[1740414466568,0.74735,2676.1,2675.9,0.74737]
[1740414466772,0.74735,2676.1,2676.0,0.74736]
[1740414466971,2.24221,2676.3,2675.7,0.5469]
[1740414467174,0.74739,2676.0,2675.8,0.7474]
[1740414467360,0.5319,2676.2,2675.7,0.5469]
[1740414467565,0.74724,2676.5,2676.0,5.07617]
[1740414467772,0.74728,2676.4,2676.3,0.74727]
[1740414468068,2.80534,2676.6,2676.1,0.5415]
[1740414468270,0.74731,2676.2,2676.1,0.5415]
[1740414468469,0.74739,2675.9,2675.8,0.7474]
[1740414468968,0.374,2676.2,2675.7,3.7547]
[1740414469170,0.74736,2676.1,2676.0,0.74736]
[1740414469370,0.374,2676.2,2675.7,3.7547]
[1740414469564,0.74736,2676.0,2675.9,0.74737]
[1740414469964,0.74731,2676.3,2676.2,0.74731]
[1740414470168,0.374,2676.3,2675.7,3.7547]
[1740414470373,0.74738,2676.0,2675.9,0.74737]
[1740414470781,3.2078,2676.4,2675.7,3.7547]
[1740414470976,0.74732,2676.2,2676.1,0.74731]
[1740414471273,3.5818,2676.4,2675.7,3.7547]
[1740414471471,0.54,2676.5,2675.8,0.54855805]
[1740414471672,0.54,2676.5,2675.8,3.2078]
[1740414472070,3.7478,2676.5,2675.7,0.5469]
[1740414472378,0.74739,2676.0,2675.9,0.74737]
[1740414472676,0.74741,2675.9,2675.8,0.74741]
[1740414473070,0.74738,2676.0,2675.9,0.74737]
[1740414473466,0.74738,2676.0,2675.7,0.5469]
[1740414473467,3.2078,2676.2,2675.7,0.5469]
[1740414473671,0.74737,2676.0,2675.7,0.5469]
[1740414473969,0.74736,2676.1,2676.0,0.74735]
[1740414474170,0.374,2676.3,2675.7,0.5469]
[1740414474376,0.74733,2676.2,2676.1,0.74733]
[1740414474979,0.374,2676.4,2675.8,1.86854]
[1740414475171,0.74732,2676.2,2676.1,0.74731]
[1740414475370,0.7473,2676.3,2676.2,0.7473]
[1740414475567,0.74736,2676.1,2676.0,0.74735]
[1740414476074,0.7474,2675.9,2675.8,0.7474]
[1740414476278,0.74738,2676.0,2675.9,0.74738]
[1740414477076,0.74738,2676.0,2675.7,0.5469]
[1740414477077,0.74736,2676.1,2676.0,0.74736]
[1740414477278,3.5818,2676.3,2675.7,0.5469]
[1740414477475,0.74736,2676.0,2675.9,0.74737]
[1740414477683,3.2078,2676.0,2675.6,0.549]
[1740414477980,0.74745,2675.7,2675.6,1.29648]
[1740414478276,0.374,2675.9,2675.6,0.549]
[1740414478277,0.5819,2675.9,2675.6,0.549]
[1740414478673,0.74745,2675.7,2675.6,1.29646]
[1740414478873,0.9559,2675.9,2675.6,0.549]
[1740414479279,0.74745,2675.7,2675.6,1.29648]
[1740414479480,0.9559,2675.9,2675.6,1.29648]
[1740414479481,0.74743,2675.8,2675.7,0.74745]
[1740414479675,3.2078,2676.3,2675.6,2.41769]
[1740414479878,3.5818,2676.3,2675.6,2.41769]
[1740414480175,0.74734,2676.1,2676.0,0.74735]
[1740414480375,0.7473,2676.3,2676.2,0.74731]
[1740414480578,3.7897,2676.6,2676.5,0.74722]
[1740414480780,3.955,2676.6,2676.5,0.74722]
[1740414480976,0.74728,2676.3,2676.2,5.33839]
[1740414481182,3.95508,2676.3,2676.2,0.5479]
[1740414481481,0.74728,2676.3,2676.2,0.5479]
[1740414482076,3.2078,2676.3,2675.6,3.484]
[1740414482275,0.74748,2675.6,2675.5,4.23709241]
[1740414482476,1.86828,2676.2,2675.5,3.48961241]
[1740414482676,0.74748,2675.6,2675.5,4.23711241]
[1740414482875,0.74748,2675.6,2675.5,0.00561241]
[1740414483383,1.8683,2676.2,2675.5,0.00561241]
[1740414483683,0.74747,2675.7,2675.6,0.74747]
[1740414483883,0.374,2676.1,2675.5,0.00561241]
[1740414484179,6.6918,2676.3,2675.5,0.00561241]
[1740414484180,0.74748,2675.6,2675.5,0.00561241]
[1740414484578,0.74764,2675.0,2674.9,1.1061]
[1740414484775,1.12164,2675.0,2674.9,1.1061]
[1740414484975,0.74774,2674.7,2674.5,4.23178]
[1740414485185,2.24315,2675.0,2674.5,3.484]
[1740414485382,3.2078,2675.4,2674.5,3.78170011]
[1740414485683,0.74764,2675.1,2674.9,0.74767]
[1740414485875,0.00561241,2675.2,2674.8,0.561]
[1740414486081,0.74767,2674.9,2674.8,1.1061]
[1740414486384,0.74765,2675.0,2674.8,1.85378]
[1740414486585,0.00561241,2675.2,2674.8,1.1061]
[1740414487185,0.00561241,2675.2,2675.1,0.74762]
[1740414489280,0.74744,2675.8,2675.0,6.6918]
[1740414489478,0.5883,2676.0,2675.4,1.86884]
[1740414489690,2.96781,2676.3,2675.4,1.86884]
[1740414489691,1.0996,2676.3,2675.6,5.0765]
[1740414489987,1.0996,2676.3,2676.0,0.74735]
[1740414489988,0.74736,2676.1,2676.0,0.74735]
[1740414490192,0.74725,2676.5,2676.4,0.74724]
[1740414490488,0.74727,2676.4,2676.3,0.74727]
[1740414490981,0.74724,2676.5,2676.4,0.74723]
[1740414491183,3.21341241,2676.7,2676.2,5.08166241]
[1740414491484,0.00561241,2676.7,2676.5,0.74721]
[1740414491688,0.00561241,2676.7,2676.6,3.955]
[1740414494088,0.75278241,2676.7,2676.6,3.2078]
[1740414494288,0.75278241,2676.7,2676.6,3.955]
[1740414494289,0.00561241,2676.7,2676.6,3.955]
[1740414494683,0.75278241,2676.7,2676.6,3.955]
[1740414494888,0.00561241,2676.7,2676.6,3.955]
[1740414495695,0.00561241,2676.7,2676.4,0.5841]
[1740414495994,0.00561241,2676.7,2676.2,3.21341241]
[1740414496191,0.75281241,2676.7,2676.5,0.74721]
[1740414496389,0.00561241,2676.7,2676.2,3.21341241]
[1740414496589,0.74721,2676.6,2676.4,0.74724]
[1740414496894,0.00561241,2676.7,2676.3,0.74728]
[1740414497192,0.74725,2676.5,2676.3,0.74726]
[1740414497387,0.00561241,2676.7,2676.3,0.74726]
[1740414497589,0.00561241,2676.7,2676.2,3.21341241]
[1740414497793,0.7472,2676.6,2676.3,0.74728]
[1740414498097,0.74726,2676.4,2676.2,3.96070241]
[1740414498387,0.00561241,2676.7,2676.2,3.96070241]
[1740414498388,0.74728,2676.3,2676.2,0.00561241]
[1740414498588,1.12128,2676.3,2676.2,0.00561241]
[1740414499688,0.74728,2676.3,2676.2,0.00561241]
[1740414500201,6.8086113,2676.3,2676.2,0.00561241]
[1740414500688,0.7475,2675.5,2675.4,1.1297]
[1740414500891,0.74747,2675.7,2675.5,0.74749]
[1740414501095,4.0663,2676.4,2675.6,3.2078]
[1740414501287,0.5863,2676.4,2675.6,6.6878]
[1740414501597,0.74738,2676.0,2675.8,0.7474]
[1740414501798,0.74738,2676.0,2675.9,0.74739]
[1740414501991,3.2078,2676.3,2675.7,0.00561241]
[1740414502294,3.2078,2676.3,2675.8,1.86852]
[1740414502495,0.74732,2676.2,2676.1,0.74732]
[1740414502687,3.2078,2676.3,2675.7,1.87422241]
[1740414502889,0.74732,2676.2,2676.1,0.74733]
[1740414503500,0.9603,2676.4,2676.0,0.74735]
[1740414503791,2.24228,2676.2,2675.7,0.75304241]
[1740414503984,2.24228,2676.2,2675.7,0.00561241]
[1740414504191,0.74738,2676.0,2675.7,0.00561241]
[1740414504497,0.74742,2675.8,2675.7,0.00561241]
[1740414504992,0.7474,2675.9,2675.7,0.00561241]
[1740414505187,0.74742,2675.8,2675.7,0.00561241]
[1740414505586,1.12142,2675.8,2675.7,0.00561241]
[1740414505990,1.66052,2675.8,2675.7,0.00561241]
[1740414506493,0.374,2675.3,2674.9,0.5784]
[1740414506699,0.74763,2675.1,2675.0,0.74764]
[1740414506893,0.74764,2675.0,2674.9,0.5784]
[1740414507093,0.74767,2674.9,2674.8,1.28499]
[1740414507397,3.5818,2675.3,2674.8,0.5373]
[1740414507593,0.74765,2675.0,2674.9,0.74766]
[1740414507799,0.00561241,2675.1,2674.8,0.5373]
[1740414508100,0.00561241,2675.1,2674.9,0.74766]
[1740414508291,0.74764,2675.0,2674.9,0.74766]
[1740414508495,0.00561241,2675.1,2674.9,0.74766]
[1740414508697,0.74764,2675.0,2674.9,0.74766]
[1740414508898,0.00561241,2675.1,2675.0,0.74764]
[1740414509098,0.74764,2675.0,2674.9,0.74766]
[1740414509299,0.00561241,2675.1,2674.8,0.5373]
[1740414509505,0.00561241,2675.1,2675.0,0.74764]
[1740414509998,0.00561241,2675.1,2675.0,3.95544]
[1740414511807,0.00561241,2675.1,2675.0,7.43444]
[1740414512309,0.00561241,2675.1,2675.0,48.23444]
[1740414514007,3.2078,2675.9,2675.0,53.4868]
[1740414514310,1.86842,2676.0,2675.1,0.5466]
[1740414514610,0.74753,2675.5,2675.4,0.74751]
[1740414515008,0.74755,2675.4,2675.3,0.74753]
[1740414515208,0.00561241,2675.7,2675.2,0.5704]
[1740414515414,0.95671241,2675.7,2675.2,0.5704]
[1740414515715,0.58271241,2675.7,2675.2,0.5704]
[1740414515910,0.58271241,2675.7,2675.0,6.6868]
[1740414515911,0.374,2675.6,2675.0,3.2078]
[1740414516212,0.374,2675.4,2674.7,4.0484]
[1740414516414,0.5906,2675.5,2674.7,4.0484]
[1740414516813,0.5906,2675.5,2674.7,0.5704]
[1740414517015,0.374,2675.2,2674.7,0.5704]
[1740414517210,0.7477,2674.8,2674.7,1.31811]
[1740414517412,0.539,2675.1,2674.7,0.5704]
[1740414517613,0.539,2675.1,2675.0,0.74764]
[1740414517915,3.2078,2675.3,2675.2,0.74759]
[1740414518116,0.00561241,2675.7,2675.0,3.2078]
[1740414518308,1.86759,2677.2,2675.6,3.2078]
[1740414518512,3.2078,2677.0,2676.3,3.2078]
[1740414518713,0.74712,2676.9,2676.5,0.74722]
[1740414518916,0.74712,2676.9,2676.4,0.74723]
[1740414519113,3.2078,2677.0,2676.3,3.2078]
[1740414519412,0.53951241,2676.9,2676.6,0.74719]
[1740414519616,0.53951241,2676.9,2676.4,0.00561241]
[1740414520314,0.53951241,2676.9,2676.6,0.74718]
[1740414520520,1.28664241,2676.9,2676.6,0.74718]
[1740414520815,0.00561241,2676.9,2676.8,0.74714]
[1740414521816,0.75274241,2676.9,2676.6,0.74719]
[1740414522115,0.00561241,2676.9,2676.4,3.21341241]
[1740414522621,0.75274241,2676.9,2676.6,0.74718]
[1740414522813,0.75274241,2676.9,2676.7,0.74717]
[1740414523013,0.00561241,2676.9,2676.4,3.21341241]
[1740414523316,0.75274241,2676.9,2676.7,0.74716]
[1740414523718,0.00561241,2676.9,2676.4,3.96064241]
[1740414524014,0.74722,2676.5,2676.4,3.21341241]
[1740414524417,0.74722,2676.5,2676.4,0.00561241]
[1740414525522,0.808545,2676.5,2676.4,0.00561241]
[1740414525821,6.061325,2676.5,2675.6,3.7417]
[1740414526021,0.74728,2676.3,2676.1,0.74731]
[1740414526224,0.74735,2676.1,2675.9,0.74738]
[1740414526520,0.74737,2676.0,2675.8,0.7474]
[1740414527022,3.7462,2676.4,2675.6,3.74731241]
[1740414527221,0.74735,2676.1,2675.9,0.74738]
[1740414527519,0.74734,2676.1,2676.0,0.74735]
[1740414527720,3.7462,2676.4,2675.9,0.74737]
[1740414527920,0.74736,2676.0,2675.8,0.7474]
[1740414528118,0.74736,2676.0,2675.6,3.74731241]
[1740414528318,0.74736,2676.1,2675.9,0.74739]
[1740414528516,3.476,2676.3,2675.6,3.74731241]
[1740414528820,3.476,2676.3,2675.9,0.74738]
[1740414528821,0.06133421,2676.2,2675.9,0.74738]
[1740414529024,0.74736,2676.1,2675.9,0.74738]
[1740414529515,7.2222,2676.4,2675.6,3.74731241]
[1740414529717,0.74736,2676.1,2675.9,0.74738]
[1740414529921,0.74736,2676.1,2676.0,0.74736]
[1740414530217,0.74736,2676.1,2675.9,0.74738]
[1740414530420,0.74735,2676.1,2675.9,0.74738]
[1740414530621,1.86825,2676.3,2675.7,0.74745]
[1740414530915,0.74741,2675.9,2675.7,0.74744]
[1740414531515,5.07618,2676.1,2675.6,0.00561241]
[1740414531720,0.74743,2675.8,2675.6,0.75306241]
[1740414531915,0.74745,2675.7,2675.6,0.00561241]
[1740414532524,3.95525,2675.7,2675.6,0.00561241]
[1740414532919,4.49265,2675.7,2675.6,0.00561241]
[1740414533420,4.55399735,2675.7,2675.6,0.00561241]
[1740414533617,4.49265,2675.7,2675.6,0.00561241]
[1740414534520,3.7693,2676.1,2675.6,0.00561241]
[1740414534719,0.06133951,2676.0,2675.9,0.74739]
[1740414535022,0.74732,2676.2,2676.1,0.74733]
[1740414535222,3.475,2676.3,2675.9,3.2078]
[1740414535423,0.5374,2676.5,2676.4,0.74725]
[1740414535624,0.74729,2676.3,2676.1,0.74733]
[1740414535821,2.4055,2676.5,2675.9,3.2078]
[1740414536127,0.5374,2676.5,2676.2,0.7473]
[1740414536424,1.28464,2676.5,2676.3,0.74726]
[1740414536617,0.5374,2676.5,2675.9,3.2078]
[1740414536817,0.74727,2676.4,2676.2,0.7473]